Cogmind - Beta 15 @@@ ROGUE MODE // 2025.08.17 @ 19:36:46 Player: Deou Result: Destroyed by L-31 Rogue with Katana Performance ------------- Evolutions (2) 1000 Regions Visited (5) 1000 Robots Destroyed (31) 155 Value Destroyed (1067) 1067 Prototype IDs (0) 0 Alien Tech Used (0) 0 Bonus (191) 191 TOTAL SCORE: 3413 Bonus ------- Follower Combat Kills 379 Friendly Fire -188 Cogmind --------- Core Integrity 0/550 Matter 300/300 Energy 88/100 System Corruption 0% Temperature Critical (550) Movement Core (50) Location -8/Storage Parts ------- > --- POWER (2) -------- (None) > --- PROPULSION (4) --- (None) > --- UTILITY (2) ------ (None) > --- WEAPON (3) ------- (None) > --- INVENTORY (5) ---- Advanced Visual Processing Unit Maul Peak State ------------ > --- POWER ------------ Nuclear Core Light Nuclear Core > --- PROPULSION ------- Light Treads Aluminum Leg Aluminum Leg > --- UTILITY ---------- Scrap Suit > --- WEAPON ----------- Heavy Laser EM Pulse Cannon Improved Datajack > --- INVENTORY -------- Advanced Visual Processing Unit Drone Bay Drone Bay Maul [Rating: 28] Favorites ----------- Power Nuclear Core Engine Ion Engine Power Core Nuclear Core Propulsion Light Treads Treads Light Treads Leg Aluminum Leg Utility Scrap Suit Device Scrap Suit Storage Small Storage Unit Weapon Beam Rifle Energy Gun Beam Rifle Energy Cannon EM Pulse Cannon Ballistic Gun Minigun Ballistic Cannon Assault Cannon Launcher Mini Grenade Launcher Impact Weapon Maul Special Melee Weapon Improved Datajack Build | -11 -10 -9 -9 -8 -8 ------- Run | Yrd Mat Mat Min Mat Sto Slots Evolved 4 | . . 2 . 2 . Power 1 | . . . . 1 . Propulsion 2 | . . 2 . . . Utility . | . . . . . . Weapon 1 | . . . . 1 . Parts Attached 31 | 6 . 8 1 9 7 Power 6 | 1 . 2 . 2 1 Engine 3 | 1 . 2 . . . Core 3 | . . . . 2 1 Reactor . | . . . . . . Propulsion 9 | 2 . 3 . 2 2 Treads 2 | . . 1 . 1 . Leg 7 | 2 . 2 . 1 2 Wheel . | . . . . . . Hover . | . . . . . . Flight . | . . . . . . Utility 4 | 1 . . 1 . 2 Device 3 | . . . 1 . 2 Storage 1 | 1 . . . . . Processor . | . . . . . . Hackware . | . . . . . . Protection . | . . . . . . Artifact . | . . . . . . Weapon 12 | 2 . 3 . 5 2 Energy Gun 5 | 2 . 1 . 1 1 Energy Cannon 1 | . . . . 1 . Ballistic Gun 2 | . . 1 . 1 . Ballistic Cannon 1 | . . . . . 1 Launcher 2 | . . 1 . 1 . Special Weapon . | . . . . . . Impact Weapon . | . . . . . . Slashing Weapon . | . . . . . . Piercing Weapon . | . . . . . . Special Melee Weapon 1 | . . . . 1 . Unidentified Prototypes . | . . . . . . Parts Lost 18 | . . 7 . . 11 Power 3 | . . 1 . . 2 Propulsion 7 | . . 4 . . 3 Utility 2 | . . . . . 2 Weapon 6 | . . 2 . . 4 Highest Loss Streak 11 | . . 5 . . 11 To Critical Strikes . | . . . . . . Average Backups 3 | 1 3 1 4 2 4 Power . | . 1 . 1 . . Propulsion . | . 1 . . . . Utility 1 | . . . 1 1 2 Weapon 1 | . 1 . 1 . 1 Tool/Special . | . . . . . . Unused Backups 6 | . . . . 3 3 Power . | . . . . . . Propulsion . | . . . . . . Utility 4 | . . . . 1 3 Weapon 2 | . . . . 2 . Tool/Special . | . . . . . . Average Slot Usage (%) 63 | . 85 54 44 65 71 Engine 4 | . 14 6 . 5 . Core 6 | . . . . 7 16 Treads 9 | . . 3 11 15 14 Leg 7 | . 28 13 . 1 4 Device 5 | . . . 8 9 9 Storage 4 | . 14 11 2 . . Energy Gun 11 | . 28 13 11 13 . Energy Cannon 3 | . . . . 3 8 Ballistic Gun 3 | . . 4 . 3 5 Launcher 3 | . . 2 11 5 . Special Melee Weapon 2 | . . . . 1 8 Peak Build Rating 28 | 6 6 8 13 26 28 Average Rating 15 | 4 6 5 11 20 25 On Entrance 9 | . 6 6 6 13 26 Naked Turns . | . . . . . . Heaviest Build 30 | 14 14 15 9 30 28 Greatest Support 40 | 20 20 40 20 40 40 Greatest Overweight (x) 4 | . . 4 . 1 2 Average Overweight (x) . | . . 1 . . . Largest Inventory Capacity 8 | 8 8 8 8 5 5 Average Capacity 6 | 6 8 8 5 5 5 Most Carried 5 | 4 4 3 5 5 5 Average Carried 3 | 1 3 1 4 2 4 Final Capacity 8 | 8 8 8 5 5 5 Final Carried 5 | 2 4 2 5 5 2 Class Distribution -------------------- 76% | Mutant 13% | Gunner 10% | Commander-Mutant Dominant Class ---------------- Mutant | -10/Materials Mutant | -9/Materials Mutant | -9/Mines Gunner | -8/Materials Mutant | -8/Storage Resources | -11 -10 -9 -9 -8 -8 ----------- Run | Yrd Mat Mat Min Mat Sto Matter Collected 830 | 196 64 63 47 140 320 Remotely . | . . . . . . Salvage Created 1046 | . 250 142 . 271 383 Parts 61 | . 17 5 . 14 25 Haulers Intercepted . | . . . . . . Recyclers Shooed 1 | . 1 . . . . Parts Field Recycled . | . . . . . . Retrieved Matter . | . . . . . . Parts Self-Destructed . | . . . . . . Prevented . | . . . . . . Kills | -11 -10 -9 -9 -8 -8 ------- Run | Yrd Mat Mat Min Mat Sto Combat Hostiles Destroyed 24 | . 7 4 . 6 7 Guns 14 | . 7 4 . 2 1 Cannons 4 | . . . . . 4 AOE 6 | . . . . 4 2 Classes Destroyed 7 | . 3 1 . 2 1 Worker 2 | . . . . . 2 Builder 2 | . . . . 1 1 Watcher 2 | . 1 . . 1 . Swarmer 5 | . 3 . . . 2 Grunt 12 | . 4 2 . 2 4 Brawler 1 | . . . . 1 . Sentry 6 | . . 2 . 3 1 Thug 1 | . . . . . 1 Best Kill Streak 4 | . 4 2 . 3 4 Combat Bots Only 3 | . 3 2 . 3 2 Max Kills in Single Turn 3 | . 2 1 . 2 3 Gunslinging . | . . . . . . Exploded 2 | . . . . 1 2 Melee . | . . . . . . Uniques/NPCs Destroyed . | . . . . . . Combat | -11 -10 -9 -9 -8 -8 -------- Run | Yrd Mat Mat Min Mat Sto Hostile Shots Fired 240 | . 26 63 . 29 122 Missed 62 | . 11 16 . 12 23 Hits 178 | . 15 47 . 17 99 Melee 8 | . . . . 1 7 Projectile 170 | . 15 47 . 16 92 Critical Strikes 6 | . 1 2 . . 3 Damage Taken 2815 | . 169 667 . 393 1586 Core 781 | . 59 157 . 37 528 Absorbed by Shields . | . . . . . . Regen/Repaired (Parts) 43 | . . . . 23 20 Core Remaining (%) 78 | 100 76 . 60 . . Volleys Fired 93 | . 14 32 . 16 31 Largest 3 | . 2 2 . 3 2 Hottest 149 | . 100 100 . 149 132 Shots Fired 161 | . 28 52 . 36 45 Gun 125 | . 28 52 . 26 19 Cannon 26 | . . . . . 26 Launcher 10 | . . . . 10 . Special . | . . . . . . Kinetic 17 | . . 6 . . 11 Thermal 111 | . 28 46 . 26 11 Explosive 10 | . . . . 10 . Electromagnetic 23 | . . . . . 23 Robot Hit Streak 24 | . 4 15 . 24 9 Robot Miss Streak 4 | . 4 2 . 3 2 Penetration Max . | . . . . . . Secondary Targets . | . . . . . . Shots Hit Robots 118 | . 14 34 . 23 47 Core Hits 51 | . 11 9 . 15 16 Critical Kills . | . . . . . . Critical Parts Destroyed . | . . . . . . Critical Strikes 6 | . 1 2 . 1 2 Burn 5 | . 1 2 . 1 1 Corrupt 1 | . . . . . 1 Melee Attacks 19 | . . . . . 19 Impact . | . . . . . . Slashing . | . . . . . . Piercing . | . . . . . . Sneak Attacks 19 | . . . . . 19 Combat Hostiles . | . . . . . . Follow-up Attacks . | . . . . . . Damage Inflicted 2521 | . 222 449 . 686 1164 Guns 1148 | . 222 424 . 256 246 Cannons 416 | . . . . . 416 Explosions 932 | . . . . 430 502 Melee . | . . . . . . Ramming 25 | . . 25 . . . Kinetic 228 | . . 77 . . 151 Thermal 1495 | . 222 347 . 256 670 Explosive 430 | . . . . 430 . Electromagnetic 343 | . . . . . 343 Impact . | . . . . . . Slashing . | . . . . . . Piercing . | . . . . . . Highest Corruption . | . . . . . . Average Corruption . | . . . . . . Corruption Purged . | . . . . . . Corruption Blocked . | . . . . . . Overload Shots . | . . . . . . Overflow Damage 16 | . . . . 16 . Projectiles . | . . . . . . Explosions 16 | . . . . 16 . Melee . | . . . . . . Knockbacks . | . . . . . . Impact . | . . . . . . Kinetic . | . . . . . . Secondary . | . . . . . . Self-Inflicted Damage 151 | . . . . 144 7 Shots 5 | . . . . 4 1 Rammed 1 | . . . . 1 . Targets Rammed 18 | . . 17 . 1 . Kicked 17 | . . 17 . . . Crushed . | . . . . . . Highest Temperature 523 | . 258 274 . 225 523 Average Temperature 119 | . 87 125 . 84 152 Received Heat Transfer 1146 | . 84 288 . 81 693 Effects 1 | . . . . . 1 Damage (minor) 1 | . . . . . 1 Siege Activations . | . . . . . . Martial Activations . | . . . . . . Shielding Activations . | . . . . . . Robots Disrupted . | . . . . . . Combat Hostiles . | . . . . . . Robots Corrupted . | . . . . . . Combat Hostiles . | . . . . . . Parts Fried 1 | . . . . . 1 Impact Corruptions . | . . . . . . Robots Melted . | . . . . . . Combat Hostiles . | . . . . . . Parts Melted 9 | . 4 5 . . . Heat Transferred 3497 | . 740 1184 . 666 907 Parts Sabotaged . | . . . . . . Parts Stolen . | . . . . . . Parts Stripped . | . . . . . . Power Chain Reactions 4 | . . . . . 4 Alert | -11 -10 -9 -9 -8 -8 ------- Run | Yrd Mat Mat Min Mat Sto Maximum Alert Level 2 | . . . . . 2 Low Security (%) 89 | 100 100 100 100 100 62 Level 1 10 | . . . . . 35 Level 2 . | . . . . . 1 Level 3 . | . . . . . . Level 4 . | . . . . . . Level 5 . | . . . . . . High Security . | . . . . . . Max Security . | . . . . . . Peak Influence 443 | . 97 50 . 146 443 Initial 21 | . . . . . 21 Average 66 | . 37 4 . 74 169 Influence Increases 1591 | . 187 110 . 286 1008 Destroy 0b10 Robot/C 780 | . 140 80 . 120 440 Destroy 0b10 Robot/NC 35 | . 5 . . 10 20 Destroy Leader 206 | . 42 30 . 42 92 Allied During Kill 186 | . . . . . 186 Successful Hack 5 | . . . . . 5 Disable Machine 60 | . . . . . 60 Anti-Garrison Action 150 | . . . . . 150 Destroy Structure 94 | . . . . 84 10 Lose Combat Pursuer 75 | . . . . 30 45 Influence Decreases 1270 | . 187 110 . 234 739 Entered New Map 31 | . . . . . 31 Time Decay 879 | . 187 70 . 234 388 Lost Part 150 | . . 40 . . 110 Lost Ally 210 | . . . . . 210 Squads Dispatched 9 | . 2 2 . . 5 Investigation . | . . . . . . Extermination . | . . . . . . Reinforcement 5 | . 2 2 . . 1 Assault 4 | . . . . . 4 Garrison . | . . . . . . Intercept . | . . . . . . Searches Triggered . | . . . . . . Construction Impeded . | . . . . . . Haulers Reinforced . | . . . . . . Active Scanning Responses . | . . . . . . Cargo Convoy Interrupts . | . . . . . . Stealth | -11 -10 -9 -9 -8 -8 --------- Run | Yrd Mat Mat Min Mat Sto Distress Signals 7 | . 1 . . 2 4 Communications Jammed . | . . . . . . Distress Signals . | . . . . . . Times Spotted 54 | . 9 6 . 8 31 Peak Tracking Total 9 | . 3 2 . 3 9 Tactical Retreats 3 | . . . . 1 2 Traps | -11 -10 -9 -9 -8 -8 ------- Run | Yrd Mat Mat Min Mat Sto Traps Triggered 2 | . . 1 . . 1 Indirectly . | . . . . . . Trap Hack Attempts . | . . . . . . Triggered . | . . . . . . Disarmed 6 | . . 6 . . . Reprogrammed . | . . . . . . Reused . | . . . . . . Traps Extracted . | . . . . . . Installed . | . . . . . . Triggered . | . . . . . . Machines | -11 -10 -9 -9 -8 -8 ---------- Run | Yrd Mat Mat Min Mat Sto Machines Disabled 5 | . . . . . 5 Max in Single Turn 2 | . . . . . 2 Garrison Access 1 | . . . . . 1 Machines Repaired . | . . . . . . Machines Dismantled . | . . . . . . Machines Sabotaged . | . . . . . . Overloaded Fab Kills . | . . . . . . Hacking | -11 -10 -9 -9 -8 -8 --------- Run | Yrd Mat Mat Min Mat Sto Machines Accessed 9 | . 2 2 . 3 2 Terminals 8 | . 2 2 . 2 2 Fabricators . | . . . . . . Repair Stations . | . . . . . . Recycling Units . | . . . . . . Scanalyzers 1 | . . . . 1 . Garrison Access . | . . . . . . Total Hacks 14 | . 4 3 . 5 2 Successful 9 | . 2 1 . 4 2 Failed 5 | . 2 2 . 1 . Catastrophic 1 | . 1 . . . . Database Lockouts . | . . . . . . Manual 4 | . 1 . . 2 1 Terminals 13 | . 4 3 . 4 2 Fabricators . | . . . . . . Repair Stations . | . . . . . . Recycling Units . | . . . . . . Scanalyzers 1 | . . . . 1 . Garrison Access . | . . . . . . Terminal Hacks 9 | . 2 1 . 4 2 Record 5 | . 1 . . 4 . Open Door 1 | . . . . . 1 Alert Level 1 | . 1 . . . . Disarm Traps 1 | . . 1 . . . Zone Layout 1 | . . . . . 1 Fabricator Hacks . | . . . . . . Repair Station Hacks . | . . . . . . Recycling Unit Hacks . | . . . . . . Scanalyzer . | . . . . . . Garrison Access Hacks . | . . . . . . Unauthorized Hacks . | . . . . . . Terminals . | . . . . . . Fabricators . | . . . . . . Repair Stations . | . . . . . . Recycling Units . | . . . . . . Scanalyzers . | . . . . . . Garrison Access . | . . . . . . Data Cores Recovered . | . . . . . . Used . | . . . . . . Hacking Detections 6 | . 1 1 . 2 2 Full Trace Events . | . . . . . . Feedback Events . | . . . . . . Feedback Blocked . | . . . . . . Robot Schematics Acquired . | . . . . . . Robots Built . | . . . . . . Authchips . | . . . . . . Time . | . . . . . . Total Robot Build Rating . | . . . . . . Part Schematics Acquired . | . . . . . . Parts Built . | . . . . . . Authchips . | . . . . . . Time . | . . . . . . Total Part Build Rating . | . . . . . . Parts Repaired . | . . . . . . Time . | . . . . . . Parts Recycled . | . . . . . . Recycled Matter . | . . . . . . Retrieved Matter . | . . . . . . Retrieved Components . | . . . . . . Parts Scanalyzed . | . . . . . . Part Schematics Acquired . | . . . . . . Parts Damaged . | . . . . . . Bothacking | -11 -10 -9 -9 -8 -8 ------------ Run | Yrd Mat Mat Min Mat Sto Used RIF Installer . | . . . . . . Robots Hacked 5 | . . . . . 5 Non-combat 5 | . . . . . 5 Combat . | . . . . . . Robot Hacks Applied 9 | . . . . . 9 parse_system 2 | . . . . . 2 no_distress 7 | . . . . . 7 Relay Couplers Released 2 | . . . . . 2 Machine Destruction 2 | . . . . . 2 Fabnet Peak Effective % . | . . . . . . Robots Rewired . | . . . . . . Allies Hacked . | . . . . . . Hacks Repelled . | . . . . . . Allies | -11 -10 -9 -9 -8 -8 -------- Run | Yrd Mat Mat Min Mat Sto Total Allies 12 | . . . . . 12 Largest Group 10 | . . . . . 10 Highest-Rated Group 173 | . . . . . 173 Highest-Rated Ally 31 | . . . . . 31 Total Orders . | . . . . . . Ally Attacks 118 | . . . . . 118 Total Damage 1357 | . . . . . 1357 Kills 16 | . . . . . 16 Allies Corrupted . | . . . . . . Allies Melted . | . . . . . . Intel | -11 -10 -9 -9 -8 -8 ------- Run | Yrd Mat Mat Min Mat Sto Active Infowar (turns) . | . . . . . . Robot Analysis Total . | . . . . . . Derelict Logs Recovered 1 | . . . 1 . . Drone Launches 4 | . . . . . 4 Drone Recoveries 1 | . . . . . 1 Exploration | -11 -10 -9 -9 -8 -8 ------------- Run | Yrd Mat Mat Min Mat Sto Turns Passed 3538 | 67 474 673 741 551 1032 Spaces Moved 1958 | 55 359 328 461 294 461 Core 109 | 17 . 89 . . 3 Treads 1224 | . . 137 461 269 357 Legs 625 | 38 359 102 . 25 101 Wheels . | . . . . . . Hover . | . . . . . . Flight . | . . . . . . Fastest Speed 50 | 50 120 120 160 160 100 Average Speed 155 | 98 120 169 160 162 171 Slowest Speed 260 | 120 120 250 160 190 260 Overloaded Moves . | . . . . . . Propulsion Burnouts . | . . . . . . Robots Hopped 2 | . . . . . 2 Potential Cave-ins . | . . . . . . Cave-ins Triggered . | . . . . . . Exploration Rate (%) 36 | 4 55 23 74 18 43 Regions Visited 5 Branch Regions 2 Pre-discovered Areas . | . . . . . . Known Exits Taken . | . . . . . . Unknown Exits Taken 5 | 1 1 1 1 1 . Scrap Searched 1 | . . . 1 . . Spaces Dug . | . . . . . . Terrain Destroyed 106 | . . . . 97 9 Melee . | . . . . . . Projectile . | . . . . . . AOE 106 | . . . . 97 9 Terrain Rammed . | . . . . . . Walls Destroyed . | . . . . . . Machines Disabled . | . . . . . . Actions | -11 -10 -9 -9 -8 -8 --------- Run | Yrd Mat Mat Min Mat Sto Total 2300 | 68 374 389 465 342 662 Wait 131 | . . . . . 131 Move 1949 | 54 358 327 460 293 457 Hop 2 | . . . . . 2 Pick Up 39 | 8 2 5 3 13 8 Fast Attach . | . . . . . . Attach 26 | 6 . 7 1 6 6 Detach 2 | . . . 1 . 1 Swap 7 | . . 1 . 4 2 Drop 14 | . . . . 9 5 Fire 93 | . 14 32 . 16 31 Melee 19 | . . . . . 19 Ram . | . . . . . . Kick 17 | . . 17 . . . Crush 1 | . . . . 1 . Escape Stasis . | . . . . . . Rewire . | . . . . . . Trap . | . . . . . . Miscellaneous . | . . . . . . Route ------- -11/Scrapyard -10/Materials (discovered 2 exits: *Mat / [*Min]) -9/Materials -9/Mines -8/Materials -8/Storage History --------- Turn | Location | Event 7 | -11/Scrapyard | Discovered new exit (range 14) 68 | -11/Scrapyard | Entered Materials 69 | -10/Materials | Met a group of wandering Federalists 114 | -10/Materials | Discovered new exit (range 12) 316 | -10/Materials | Build established: Mutant 531 | -10/Materials | Discovered new exit (range 5) 542 | -10/Materials | Entered another Materials area 542 | -9/Materials | Evolved 2 slots: Propulsion x2 790 | -9/Materials | Lost 5 parts (3n2w) 936 | -9/Materials | Discovered new exit (range 7) 1215 | -9/Materials | Entered Mines 1272 | -9/Mines | Met a Derelict bent on vengeance 1371 | -9/Mines | Found a Scrap Suit stashed away for nefarious purposes 1380 | -9/Mines | Found Scrap Suit 1460 | -9/Mines | Discovered new exit (range 15) 1492 | -9/Mines | Learned Materials trap positions 1956 | -9/Mines | Entered Materials 1956 | -8/Materials | Evolved 2 slots: Power x1, Weapon x1 1957 | -8/Materials | Loaded intel: 13 trap records 2239 | -8/Materials | Build established: Gunner 2409 | -8/Materials | Discovered new exit (range 13) 2507 | -8/Materials | Entered Storage 2562 | -8/Storage | Assisted by bots powering up and referring to "LRC-V3" 2851 | -8/Storage | Build established: Commander-Mutant 2899 | -8/Storage | Lost 3 allies 3231 | -8/Storage | Build established: Mutant 3467 | -8/Storage | Met a pair of Derelict thieves 3531 | -8/Storage | Core integrity fell below 50% 3535 | -8/Storage | Core integrity fell below 20% 3539 | -8/Storage | Destroyed by L-31 Rogue with Katana Last Messages --------------- 03521_ Drone destroyed. 03522_ Critical hit (Burn: +37). 03523_ K-01 Serf collects debris. 03524_ Lgt. Treads destroyed. 03526_ K-01 Serf collects debris. 03527_ Drone Bay destroyed. 03528_ Aluminum Leg destroyed. 03528_ G-47 Trooper suffers critical hit (Burn). 03528_ G-47 Trooper destroyed. 03531_ Acquired Assault Cannon. 03531_ K-01 Serf collects debris. 03534_ Critical hit (Burn: +37). 03535_ K-01 Serf collects debris. 03536_ Hvy. Laser destroyed. 03537_ Acquired 1 matter. 03538_ K-01 Serf collects debris. 03538_ G-50 Soldier destroyed. 03539_ Overheating: Assault Cannon damaged (-5). 03539_ Acquired 19 matter. 03539_ Assault Cannon destroyed. Map ----- +----------------------------------------------------+ | ???????????????????????????????????????? | | ???????????????????????????????????????? | | ???????????????????????????????????????? | | ???????????????????????????????????????? | | ???????????????????????????????????????? | | ???????????????????????????????????????? | | ???????????????????????????????????????? | | ???????????????????????????????????????? | | ???????????????????????????????????????? | | ???????????????????????????????????????? | | ???????????????????????????????????????? | | ????????????????# ?????????????????????? | | ????????????????# [???????????????????? | | ????????????????# *%#??????????????????? | | ????????????????# %=#??????????????????? | | ????????????????# * #??????????????????? | | ????????????????T" #??????????????????? | | ????????????????#%" +??????????????????? | | ????????????????#" #??????????????????? | | ????????????????# #??????????????????? | | ????????????????# #??????????????????? | | ?????????????#### #??????????????????? | | ?????????????# "" #??????????????????? | | ?????????????#"G #??????????????????? | | ?????????????# " = #########??????????? | | ???##############%== ""#=@ ]#??????????? | | ???# !#= %! #g]l #??????????? | | ???# / |%%m===% #??????????? | | ???# #! % =mggg[#??????????? | | ???# # ; =kg=m%#??????????? | | ???# #^k # # %[[#??????????? | | ""?#####+######## #########??????????? | | ""#????# #??????##+##??????????????????? | | ""#????# #?????????????????????????????? | | ""#????# #?????????????????????????????? | | ""#????# #?????????????????????????????? | | ?????# #?????????????????????????????? | | ######## #####?????????????????????????? | | % % % # ##????????????????????????? | | %+ !!T#????????????????????????? | | ==### ##????????????????????????? | | ##! #????????????????????????? | | #########! #????????????????????????? | | #???????#! !#????????????????????????? | | #???????#! !#????????????????????????? | | #???????#####????????????????????????? | | ##????????????????????????????????????? | | #?????????????????????????????????????? | | #?????????????????????????????????????? | | #?????????????????????????????????????? | +----------------------------------------------------+ Best States ------------- Heat Dissipation 31 Energy Generation 23 Energy Capacity 380 Matter Stores 300 Matter Capacity 300 Sight Range 16 Terrain Scan Density 10 Evasion (%) 55 Recoil Reduction 2 Item Schematics ----------------- None Robot Schematics ------------------ None Fabricated ------------ Nothing Repaired ---------- Nothing Alien Tech Used ----------------- None Achievements -------------- Backstab Let's See Who's Tougher Challenges ------------ None Game ------ Seed FusionThermoelectricSword Manual? 0 Play Time 00:30:38 Cumulative 2.5 hours Start 2025.08.17 @ 19:05:50 End 2025.08.17 @ 19:36:46 Sessions 1 Manual Loads 0 Difficulty Rogue Special Mode None Game No. 5 Rogue 5 Adventurer 0 Explorer 0 Win Type - Total 0 Types 0/0/0/0/0/0/0/0/0/0 Lore% 3 Gallery% 4 Achievement% 8 Wizard Run 0 Options --------- Layout 0 ASCII 0 Keyboard 0 Movement Arrows Keybinds 0 Fullscreen 2 Font 24/Terminus Map View 76x50 Zoom Use 0% Tactical HUD 1 Map Filters NONE Filters NONE Steam 1 RUN: 71ff7639-9a76-48df-9d63-5bf00eae4311